fUST/lending_fUST_20240813
["ID","MTS","AMOUNT","RATE_DAILY","PERIOD"]
[334729804,1723516027764,-188.635983,0.00013698,2]
[334729805,1723516027786,-249.08443394,0.00013698,2]
[334729806,1723516027809,-502.31401291,0.00013698,2]
[334729807,1723516027830,-511.14859023,0.00013698,2]
[334729808,1723516027852,-500.0,0.00013698,2]
[334729809,1723516027876,-322.66514326,0.00013698,2]
[334729810,1723516027899,-561.58,0.00013698,2]
[334729811,1723516027921,-3079.64,0.00013698,2]
[334729812,1723516027942,-1057.34,0.00013698,2]
[334729813,1723516027964,-500.0,0.00013698,2]
[334729814,1723516027986,-1055.51,0.00013698,2]
[334729815,1723516028008,-1111.48,0.00013698,2]
[334729816,1723516028032,-1354.3,0.00013698,2]
[334729817,1723516028055,-5180.17,0.00013698,2]
[334729818,1723516028076,-500.0,0.00013698,2]
[334729819,1723516028099,-583.59,0.00013698,2]
[334729820,1723516028120,-500.0,0.00013698,2]
[334729821,1723516028142,-715.12,0.00013698,2]
[334729822,1723516028164,-5686.67,0.00013698,2]
[334729823,1723516028186,-916.68,0.00013698,2]
[334729824,1723516028208,-2029.91,0.00013698,2]
[334729825,1723516028229,-500.0,0.00013698,2]
[334729826,1723516028251,-500.0,0.00013698,2]
[334729827,1723516028275,-500.0,0.00013699,2]
[334729828,1723516028296,-500.0,0.00013699,2]
[334729829,1723516028321,-500.0,0.00013699,2]
[334729830,1723516028343,-500.0,0.00013699,2]
[334729831,1723516028367,-500.0,0.00013699,2]
[334729832,1723516028390,-500.0,0.00013699,2]
[334729833,1723516028413,-500.0,0.00013699,2]
[334729834,1723516028436,-500.0,0.00013699,2]
[334729835,1723516028458,-500.0,0.00013699,2]
[334729836,1723516028482,-500.0,0.00013699,2]
[334729837,1723516028505,-500.0,0.00013699,2]
[334729838,1723516028533,-500.0,0.00013699,2]
[334729839,1723516028556,-500.0,0.00013699,2]
[334729840,1723516028580,-500.0,0.00013699,2]
[334729841,1723516028603,-500.0,0.00013699,2]
[334729842,1723516028626,-500.0,0.00013699,2]
[334729843,1723516028652,-500.0,0.00013699,2]
[334729844,1723516028675,-500.0,0.00013699,2]
[334729845,1723516028698,-500.0,0.00013699,2]
[334729846,1723516028722,-500.0,0.00013699,2]
[334729847,1723516028746,-500.0,0.00013699,2]
[334729848,1723516028770,-500.0,0.00013699,2]
[334729849,1723516028792,-500.0,0.00013699,2]
[334729850,1723516028815,-500.0,0.00013699,2]
[334729851,1723516028838,-500.0,0.00013699,2]
[334729852,1723516028860,-500.0,0.00013699,2]
[334729853,1723516028884,-500.0,0.00013699,2]
[334729854,1723516028906,-500.0,0.00013699,2]
[334729855,1723516028929,-500.0,0.00013699,2]
[334729856,1723516028952,-500.0,0.00013699,2]
[334729857,1723516028975,-500.0,0.00013699,2]
[334729858,1723516028999,-500.0,0.00013699,2]
[334729859,1723516029023,-500.0,0.00013699,2]
[334729860,1723516029046,-500.0,0.00013699,2]
[334729861,1723516029069,-500.0,0.00013699,2]
[334729862,1723516029092,-500.0,0.00013699,2]
[334729863,1723516029116,-500.0,0.00013699,2]
[334729864,1723516029140,-500.0,0.00013699,2]
[334729865,1723516029163,-500.0,0.00013699,2]
[334729866,1723516029187,-500.0,0.00013699,2]
[334729867,1723516029213,-500.0,0.00013699,2]
[334729868,1723516029239,-500.0,0.00013699,2]
[334729869,1723516029263,-500.0,0.00013699,2]
[334729870,1723516029287,-500.0,0.00013699,2]
[334729871,1723516029311,-250.0,0.00013699,2]
[334729872,1723516029339,-857.61,0.00013789,2]
[334729873,1723516029363,-534.81,0.00013789,2]
[334729874,1723516029386,-500.0,0.00013789,2]
[334729875,1723516029408,-500.0,0.00013789,2]
[334729876,1723516029430,-1359.4193138,0.00013789,2]
[334729877,1723516029452,-500.0,0.00013789,2]
[334729878,1723516029473,-517.64,0.00013789,2]
[334729879,1723516029495,-500.0,0.00013789,2]
[334729880,1723516029518,-3288.95,0.00013789,2]
[334729881,1723516029540,-976.37,0.00013789,2]
[334729882,1723516029562,-850.43,0.00013789,2]
[334729883,1723516029584,-500.0,0.00013789,2]
[334729884,1723516029606,-619.92,0.00013789,2]
[334729885,1723516029630,-500.0,0.00013789,2]
[334729886,1723516029653,-500.0,0.00013789,2]
[334729887,1723516029677,-500.0,0.00013789,2]
[334729888,1723516029699,-500.0,0.00013789,2]
[334729889,1723516029721,-741.42,0.00013789,2]
[334729890,1723516029742,-507.42,0.00013789,2]
[334729891,1723516029764,-500.0,0.00013789,2]
[334729892,1723516029786,-1137.58,0.00013789,2]
[334729893,1723516029808,-929.69,0.00013789,2]
[334729894,1723516029831,-500.0,0.00013789,2]
[334729895,1723516029854,-1359.41931376,0.00013858,2]
[334729896,1723516029876,-4670.4816492,0.00013866,2]
[334729897,1723516029897,-200.0,0.00013873,2]
[334729898,1723516029919,-200.0,0.00013873,2]
[334729899,1723516029942,-500.0,0.00013879,2]
[334729900,1723516029965,-500.0,0.00013879,2]
[334729901,1723516029987,-242.4832447,0.00013879,2]
[334729902,1723516030010,-500.0,0.00013879,2]
[334729903,1723516030033,-85558.7714056,0.0001388,2]
[334729904,1723516030056,-5836.01404562,0.00013881,2]
[334729905,1723516057859,202.12172355,9.999e-05,2]
[334729907,1723516131723,155.03864168,9.999e-05,2]
[334729908,1723516142226,180.22249239,9.999e-05,2]
[334729911,1723516150135,-154.99672705,0.0001212,2]
[334729952,1723516232168,-300.0,0.00013697,2]
[334729954,1723516232178,-740.09,0.00013698,2]
[334729957,1723516232187,-34.87059212,0.00013698,2]
[334729961,1723516232202,-422.024069,0.00013698,2]
[334729963,1723516232215,-535.17533888,0.00013698,2]
[334729965,1723516232226,-538.18,0.00013698,2]
[334729967,1723516232236,-152.89466112,0.00013698,2]
[334730036,1723516238347,-347.10533888,0.00013698,2]
[334730037,1723516238357,-3151.91,0.00013698,2]
[334730038,1723516238368,-911.11499248,0.00013698,2]
[334730134,1723516239530,-24.57500752,0.00013698,2]
[334730136,1723516239541,-815.0,0.00013698,2]
[334730138,1723516239551,-655.03,0.00013698,2]
[334730140,1723516239562,-2951.33,0.00013698,2]
[334730142,1723516239571,-1066.03,0.00013698,2]
[334730144,1723516239581,-500.0,0.00013698,2]
[334730146,1723516239591,-668.26,0.00013698,2]
[334730148,1723516239602,-500.0,0.00013698,2]
[334730151,1723516239613,-3164.13,0.00013698,2]
[334730153,1723516239623,-500.0,0.00013698,2]
[334730155,1723516239633,-701.46,0.00013698,2]
[334730157,1723516239643,-1066.3,0.00013698,2]
[334730159,1723516239653,-747.84,0.00013698,2]
[334730161,1723516239663,-1122.71,0.00013698,2]
[334730163,1723516239672,-559.27,0.00013698,2]
[334730165,1723516239682,-615.04,0.00013698,2]
[334730167,1723516239691,-500.0,0.00013698,2]
[334730169,1723516239701,-758.67,0.00013698,2]
[334730170,1723516239721,-500.0,0.00013698,2]
[334730171,1723516239731,-500.0,0.00013778,2]
[334730172,1723516239740,-500.0,0.00013778,2]
[334730173,1723516239749,-500.0,0.00013778,2]
[334730174,1723516239758,-500.0,0.00013778,2]
[334730175,1723516239772,-475.0,0.00013778,2]
[334730176,1723516239782,-782.17672777,0.00013779,2]
[334730177,1723516239794,-730.95194589,0.00013779,2]
[334730178,1723516239805,-1584.22929893,0.00013779,2]
[334730179,1723516239815,-1172.24,0.00013789,2]
[334730180,1723516239824,-843.05,0.00013789,2]
[334730181,1723516239833,-500.0,0.00013789,2]
[334730182,1723516239842,-411.61482315,0.00013789,2]
[334730190,1723516242917,-1145.2,0.00013698,2]
[334730191,1723516242927,-2122.61,0.00013698,2]
[334730192,1723516242937,-88.38517685,0.00013789,2]
[334730193,1723516242946,-500.0,0.00013789,2]
[334730194,1723516242956,-500.0,0.00013789,2]
[334730195,1723516242966,-1123.04,0.00013789,2]
[334730196,1723516242976,-531.96,0.00013789,2]
[334730197,1723516242985,-545.82,0.00013789,2]
[334730198,1723516242995,-500.0,0.00013789,2]
[334730199,1723516243004,-1115.83,0.00013789,2]
[334730200,1723516243013,-500.0,0.00013789,2]
[334730201,1723516243022,-609.85,0.00013789,2]
[334730202,1723516243032,-500.0,0.00013789,2]
[334730203,1723516243041,-516.95,0.00013789,2]
[334730204,1723516243051,-194.48696844,0.00013789,2]
[334730205,1723516243060,-547.66,0.00013789,2]
[334730206,1723516243070,-500.0,0.00013789,2]
[334730207,1723516243080,-500.0,0.00013789,2]
[334730208,1723516243090,-815.65158828,0.0001379,2]
[334730209,1723516243100,-815.65158825,0.00013879,2]
[334730210,1723516243109,-500.0,0.0001388,2]
[334730211,1723516243118,-500.0,0.0001388,2]
[334730212,1723516243127,-500.0,0.0001388,2]
[334730213,1723516243137,-500.0,0.0001388,2]
[334730214,1723516243146,-525.55920083,0.0001388,2]
[334730215,1723516243156,-500.0,0.0001388,2]
[334730216,1723516243166,-1297.87,0.0001388,2]
[334730217,1723516243175,-521.36,0.0001388,2]
[334730218,1723516243186,-4964.33,0.0001388,2]
[334730219,1723516243196,-500.0,0.0001388,2]
[334730220,1723516243207,-821.87,0.0001388,2]
[334730221,1723516243219,-17008.9256179,0.00013881,2]
[334730224,1723516243231,-63980.1065151,0.00013881,2]
[334730226,1723516243242,-500.0,0.00013889,2]
[334730227,1723516243252,-406.93343975,0.00013889,2]
[334730229,1723516243261,-500.0,0.00013889,2]
[334730231,1723516243270,-500.0,0.00013889,2]
[334730232,1723516243279,-500.0,0.00013889,2]
[334730234,1723516243288,-565.17,0.00013889,2]
[334730236,1723516243297,-560.15,0.00013889,2]
[334730238,1723516243306,-500.0,0.00013889,2]
[334730240,1723516243315,-500.0,0.00013889,2]
[334730241,1723516243326,-500.0,0.00013889,2]
[334730242,1723516243335,-500.0,0.00013889,2]
[334730243,1723516243345,-500.0,0.00013889,2]
[334730244,1723516243356,-500.0,0.00013889,2]
[334730245,1723516243367,-852.67,0.00013889,2]
[334730246,1723516243380,-500.0,0.00013889,2]
[334730247,1723516243392,-500.0,0.00013889,2]
[334730248,1723516243401,-500.0,0.00013889,2]
[334730249,1723516243410,-500.0,0.00013889,2]
[334730250,1723516243421,-500.0,0.00013889,2]
[334730251,1723516243431,-500.0,0.00013889,2]
[334730252,1723516243440,-500.0,0.00013889,2]
[334730253,1723516243449,-598.23,0.00013889,2]
[334730254,1723516243461,-1133.29,0.00013889,2]
[334730255,1723516243473,-500.0,0.00013889,2]
[334730256,1723516243483,-898.36,0.00013889,2]
[334730257,1723516243493,-878.43,0.00013889,2]
[334730258,1723516243502,-500.0,0.00013889,2]
[334730259,1723516243513,-500.0,0.00013889,2]
[334730262,1723516243524,-500.0,0.00013889,2]
[334730264,1723516243535,-500.0,0.00013889,2]
[334730265,1723516243547,-1168.53,0.00013889,2]
[334730266,1723516243556,-500.0,0.00013889,2]
[334730267,1723516243566,-1099.76,0.00013889,2]
[334730268,1723516243575,-500.0,0.00013889,2]
[334730269,1723516243585,-500.0,0.00013889,2]
[334730270,1723516243595,-1654.24,0.00013889,2]
[334730271,1723516243606,-500.0,0.00013889,2]
[334730272,1723516243617,-963.17,0.00013889,2]
[334730273,1723516243629,-744.59,0.00013889,2]
[334730274,1723516243639,-500.0,0.00013889,2]
[334730275,1723516243649,-500.0,0.0001389,2]
[334730276,1723516243661,-500.0,0.0001389,2]
[334730277,1723516243670,-500.0,0.0001389,2]
[334730278,1723516243681,-500.0,0.0001389,2]
[334730279,1723516243692,-500.0,0.0001389,2]
[334730280,1723516243703,-500.0,0.0001389,2]
[334730281,1723516243714,-500.0,0.0001389,2]
[334730282,1723516243726,-500.0,0.0001389,2]
[334730283,1723516243737,-500.0,0.0001389,2]
[334730284,1723516243747,-500.0,0.0001389,2]
[334730285,1723516243757,-616.14,0.0001389,2]
[334730286,1723516243767,-503.96318274,0.0001389,2]
[334730287,1723516243775,-500.0,0.0001389,2]
[334730288,1723516243785,-505.64133762,0.0001389,2]
[334730289,1723516243794,-602.73985739,0.0001389,2]
[334730290,1723516243804,-500.0,0.0001389,2]
[334730291,1723516243813,-504.61033137,0.0001389,2]
[334730292,1723516243822,-345.81236514,0.0001389,2]
[334730293,1723516243832,-500.0,0.0001389,2]
[334730294,1723516243841,-500.0,0.0001389,2]
[334730295,1723516243850,-500.0,0.0001389,2]
[334730296,1723516243859,-505.81116894,0.0001389,2]
[334730297,1723516243869,-709.81,0.0001389,2]
[334730298,1723516243878,-500.0,0.0001389,2]
[334730299,1723516243887,-500.0,0.0001389,2]
[334730300,1723516243897,-508.53916935,0.0001389,2]
[334730301,1723516243909,-501.27020525,0.0001389,2]
[334730302,1723516243919,-500.8461875,0.0001389,2]
[334730303,1723516243928,-500.0,0.0001389,2]
[334730304,1723516243938,-500.0,0.0001389,2]
[334730305,1723516243947,-500.0,0.0001389,2]
[334730306,1723516243957,-500.45630189,0.0001389,2]
[334730307,1723516243967,-505.81406962,0.0001389,2]
[334730308,1723516243977,-739.38,0.0001389,2]
[334730309,1723516243986,-500.0,0.0001389,2]
[334730310,1723516243998,-506.75701064,0.0001389,2]
[334730311,1723516244007,-625.46,0.0001389,2]
[334730312,1723516244018,-500.0,0.0001389,2]
[334730313,1723516244029,-503.20257836,0.0001389,2]
[334730314,1723516244039,-500.0,0.0001389,2]
[334730315,1723516244050,-505.4133007,0.0001389,2]
[334730316,1723516244060,-504.83336744,0.0001389,2]
[334730317,1723516244070,-500.0,0.0001389,2]
[334730318,1723516244080,-2985.52,0.0001389,2]
[334730319,1723516244089,-500.0,0.0001389,2]
[334730320,1723516244098,-500.0,0.0001389,2]
[334730321,1723516244107,-802.64,0.0001389,2]
[334730322,1723516244116,-500.0,0.0001389,2]
[334730323,1723516244126,-943.61,0.0001389,2]
[334730324,1723516244135,-564.17963085,0.0001389,2]
[334730325,1723516244144,-500.0,0.0001389,2]
[334730326,1723516244153,-500.0,0.0001389,2]
[334730327,1723516244163,-500.0,0.0001389,2]
[334730328,1723516244171,-500.0,0.0001389,2]
[334730329,1723516244181,-500.0,0.0001389,2]
[334730330,1723516244190,-500.0,0.0001389,2]
[334730331,1723516244199,-500.0,0.0001389,2]
[334730332,1723516244209,-500.0,0.0001389,2]
[334730333,1723516244219,-864.65,0.0001389,2]
[334730334,1723516244228,-1637.24,0.0001389,2]
[334730335,1723516244237,-500.0,0.0001389,2]
[334730336,1723516244246,-500.0,0.0001389,2]
[334730337,1723516244255,-500.0,0.0001389,2]
[334730338,1723516244265,-837.44,0.0001389,2]
[334730339,1723516244275,-1269.12,0.0001389,2]
[334730341,1723516244285,-500.0,0.0001389,2]
[334730342,1723516244296,-500.0,0.0001389,2]
[334730343,1723516244306,-500.0,0.0001389,2]
[334730344,1723516244316,-535.78908228,0.0001389,2]
[334730345,1723516244325,-500.0,0.0001389,2]
[334730346,1723516244335,-505.93522119,0.0001389,2]
[334730347,1723516244344,-500.0,0.0001389,2]
[334730348,1723516244354,-500.0,0.0001389,2]
[334730349,1723516244363,-999.53,0.0001389,2]
[334730350,1723516244374,-500.0,0.00013891,2]
[334730351,1723516244384,-506.62531175,0.00013891,2]
[334730352,1723516244394,-500.0,0.00013891,2]
[334730353,1723516244403,-500.0,0.00013891,2]
[334730354,1723516244414,-619.42161287,0.00013891,2]
[334730355,1723516244424,-434.90440798,0.00013891,2]
[334730356,1723516244434,-44.15383971,0.00013891,2]
[334730357,1723516244462,-721.77293077,0.00013891,2]
[334730358,1723516244489,-1263.73322952,0.00013891,2]
[334730359,1723516244499,-574.36,0.00013891,2]
[334730360,1723516244509,-500.0,0.00013891,2]
[334730361,1723516244518,-500.0,0.00013891,2]
[334730362,1723516244528,-1417.45,0.00013891,2]
[334730363,1723516244537,-500.0,0.00013891,2]
[334730364,1723516244547,-500.0,0.00013891,2]
[334730365,1723516244557,-500.0,0.00013891,2]
[334730366,1723516244566,-184.45677048,0.00013891,2]
[334730367,1723516244579,-315.54322952,0.00013891,2]
[334730368,1723516244589,-293.97562672,0.00013891,2]
[334730369,1723516244600,-206.02437328,0.00013891,2]
[334730370,1723516244610,-509.27816134,0.00013891,2]
[334730371,1723516244619,-145.55853984,0.00013891,2]
[334730372,1723516244667,-162.68919582,0.00013891,2]
[334730382,1723516252669,503.6,0.00025,60]
[334730383,1723516335330,154.74467129,0.0001,2]
[334730384,1723516405377,196.05450635,0.0001,2]
[334730385,1723516430104,154.74467129,0.0001,2]
[334730386,1723516507619,155.37041456,0.0001,2]
[334730387,1723516575123,1040.41635543,0.000161,4]
[334730388,1723516662771,329.9129517,9.999e-05,2]
[334730389,1723516678006,200.8212198,0.00025,120]
[334730391,1723516990959,329.9129517,9.999e-05,2]
[334730392,1723517166907,155.0788211,0.0001,2]
[334730394,1723517249159,-180.599922,0.00012735,2]
[334730395,1723517249183,-180.599922,0.00012901,2]
[334730396,1723517249207,-180.599922,0.00013067,2]
[334730397,1723517249230,-180.599922,0.00013233,2]
[334730398,1723517249253,-180.599922,0.00013399,2]
[334730399,1723517249273,-153.0,0.000134,2]
[334730400,1723517249302,-5323.40502986,0.00013439,2]
[334730401,1723517249324,-453.0697186,0.000135,2]
[334730402,1723517249346,-420.9344986,0.000135,2]
[334730403,1723517249369,-300.0,0.00013597,2]
[334730404,1723517249392,-194.0,0.00013597,2]
[334730405,1723517249416,-2710.18822599,0.00013598,2]
[334730406,1723517249440,-153.0,0.000136,2]
[334730407,1723517249463,-153.0,0.000136,2]
[334730408,1723517249484,-585.6057742,0.000136,2]
[334730409,1723517249505,-306.0,0.000136,2]
[334730410,1723517249531,-572.52454053,0.00013672,2]
[334730411,1723517249552,-286.80586129,0.00013697,2]
[334730412,1723517249574,-572.5245405,0.00013697,2]
[334730413,1723517249594,-243.18636395,0.00013698,2]
[334730414,1723517249615,-500.0,0.00013698,2]
[334730415,1723517249637,-199.56367129,0.00013698,2]
[334730416,1723517249658,-501.88324944,0.00013698,2]
[334730417,1723517249679,-500.0,0.00013698,2]
[334730418,1723517249705,-500.0,0.00013698,2]
[334730419,1723517249727,-500.0,0.00013698,2]
[334730420,1723517249748,-500.0,0.00013698,2]
[334730421,1723517249771,-500.0,0.00013698,2]
[334730422,1723517249795,-500.0,0.00013698,2]
[334730423,1723517249817,-265.22901055,0.00013698,2]
[334730443,1723517432332,-269.81583379,0.0001359,2]
[334730444,1723517432346,-2101.59886396,0.0001359,2]
[334730445,1723517432358,-200.0,0.00013673,2]
[334730446,1723517432367,-200.0,0.00013673,2]
[334730447,1723517432377,-200.0,0.00013673,2]
[334730448,1723517432387,-166.92580288,0.00013673,2]
[334730449,1723517432399,-33.07419712,0.00013673,2]
[334730450,1723517432408,-998.3028851,0.00013688,2]
[334730451,1723517432418,-87.07291778,0.00013688,2]
[334730553,1723517439066,-343.5147243,0.00013598,2]
[334730554,1723517439076,-343.5147243,0.00013641,2]
[334730555,1723517439086,-212.92708222,0.00013688,2]
[334730556,1723517439095,-6766.51384574,0.00013689,2]
[334730557,1723517439107,-1256.44656581,0.00013689,2]
[334730558,1723517439119,-16051.89116146,0.00013689,2]
[334730559,1723517439133,-66068.15502949,0.00013689,2]
[334730560,1723517439142,-90143.0066025,0.0001369,2]
[334730561,1723517439152,-53932.09473514,0.00013698,2]
[334730562,1723517439162,-234.77098945,0.00013698,2]
[334730563,1723517439171,-500.0,0.00013698,2]
[334730564,1723517439187,-186.81211809,0.00013698,2]
[334730565,1723517439197,-500.0,0.00013698,2]
[334730566,1723517439206,-500.0,0.00013698,2]
[334730567,1723517439215,-500.0,0.00013698,2]
[334730568,1723517439225,-500.0,0.00013698,2]
[334730569,1723517439235,-237.71194581,0.00013698,2]
[334730570,1723517439244,-500.0,0.00013698,2]
[334730571,1723517439252,-500.0,0.00013698,2]
[334730572,1723517439262,-500.0,0.00013698,2]
[334730573,1723517439270,-274.41065796,0.00013698,2]
[334730574,1723517439279,-565.98,0.00013698,2]
[334730575,1723517439289,-500.0,0.00013698,2]
[334730576,1723517439298,-503.03826267,0.00013698,2]
[334730577,1723517439307,-500.0,0.00013698,2]
[334730578,1723517439317,-500.0,0.00013698,2]
[334730579,1723517439326,-500.0,0.00013698,2]
[334730580,1723517439339,-500.0,0.00013698,2]
[334730581,1723517439348,-503.76411208,0.00013698,2]
[334730582,1723517439357,-500.0,0.00013698,2]
[334730583,1723517439366,-503.91010508,0.00013698,2]
[334730584,1723517439375,-284.84680017,0.00013698,2]
[334730585,1723517439384,-500.0,0.00013698,2]
[334730586,1723517439394,-500.0,0.00013698,2]
[334730587,1723517439403,-500.0,0.00013698,2]
[334730588,1723517439412,-522.23,0.00013698,2]
[334730589,1723517439422,-500.0,0.00013698,2]
[334730590,1723517439433,-625.24,0.00013698,2]
[334730591,1723517439442,-500.0,0.00013698,2]
[334730592,1723517439451,-500.0,0.00013698,2]
[334730593,1723517439460,-500.0,0.00013698,2]
[334730594,1723517439470,-500.0,0.00013698,2]
[334730595,1723517439480,-504.52869769,0.00013698,2]
[334730596,1723517439490,-500.0,0.00013698,2]
[334730597,1723517439499,-500.0,0.00013698,2]
[334730598,1723517439509,-503.93061823,0.00013698,2]
[334730599,1723517439519,-500.0,0.00013698,2]
[334730600,1723517439528,-501.65658409,0.00013698,2]
[334730601,1723517439538,-502.4437557,0.00013698,2]
[334730602,1723517439547,-502.02979669,0.00013698,2]
[334730603,1723517439556,-501.45057238,0.00013698,2]
[334730604,1723517439566,-500.0,0.00013698,2]
[334730605,1723517439575,-500.0,0.00013698,2]
[334730606,1723517439585,-501.03116946,0.00013698,2]
[334730607,1723517439594,-502.31309639,0.00013698,2]
[334730608,1723517439604,-500.0,0.00013698,2]
[334730609,1723517439613,-500.0,0.00013698,2]
[334730610,1723517439623,-500.0,0.00013698,2]
[334730611,1723517439632,-502.77113097,0.00013698,2]
[334730612,1723517439642,-502.53330438,0.00013698,2]
[334730613,1723517439653,-501.22635763,0.00013698,2]
[334730614,1723517439663,-685.32,0.00013698,2]
[334730615,1723517439673,-504.02452338,0.00013698,2]
[334730616,1723517439684,-501.14588562,0.00013698,2]
[334730617,1723517439693,-501.72907514,0.00013698,2]
[334730618,1723517439703,-502.18574441,0.00013698,2]
[334730619,1723517439712,-500.29143394,0.00013698,2]
[334730620,1723517439722,-284.30155513,0.00013698,2]
[334730621,1723517439731,-500.0,0.00013698,2]
[334730622,1723517439741,-500.0,0.00013698,2]
[334730623,1723517439755,-1945.33,0.00013698,2]
[334730624,1723517439765,-500.0,0.00013698,2]
[334730625,1723517439774,-503.33157854,0.00013698,2]
[334730626,1723517439783,-500.0,0.00013698,2]
[334730627,1723517439795,-185.89970515,0.00013698,2]
[334730628,1723517439804,-215.52375753,0.00013698,2]
[334730629,1723517439813,-500.0,0.00013698,2]
[334730630,1723517439824,-500.0,0.00013698,2]
[334730632,1723517439833,-500.0,0.00013698,2]
[334730634,1723517439843,-500.0,0.00013698,2]
[334730636,1723517439853,-500.0,0.00013698,2]
[334730638,1723517439862,-507.05239135,0.00013698,2]
[334730639,1723517439871,-709.25,0.00013698,2]
[334730640,1723517439880,-576.87,0.00013698,2]
[334730641,1723517439890,-500.0,0.00013698,2]
[334730642,1723517439899,-890.95,0.00013698,2]
[334730643,1723517439909,-950.73,0.00013698,2]
[334730644,1723517439920,-500.0,0.00013698,2]
[334730645,1723517439932,-482.42053653,0.00013698,2]
[334730646,1723517439942,-500.0,0.00013698,2]
[334730647,1723517439951,-1152.8,0.00013698,2]
[334730648,1723517439961,-500.80143685,0.00013698,2]
[334730649,1723517439970,-505.42697462,0.00013698,2]
[334730650,1723517439979,-502.05128302,0.00013698,2]
[334730651,1723517439990,-504.14047404,0.00013698,2]
[334730652,1723517439999,-505.92990802,0.00013698,2]
[334730653,1723517440009,-506.55540525,0.00013698,2]
[334730654,1723517440018,-500.0,0.00013698,2]
[334730655,1723517440028,-503.91316653,0.00013698,2]
[334730656,1723517440037,-507.5474858,0.00013698,2]
[334730657,1723517440047,-500.0,0.00013698,2]
[334730658,1723517440056,-503.78290479,0.00013698,2]
[334730659,1723517440065,-500.0,0.00013698,2]
[334730660,1723517440075,-507.13052992,0.00013698,2]
[334730661,1723517440084,-627.74,0.00013698,2]
[334730662,1723517440094,-807.93,0.00013698,2]
[334730663,1723517440104,-500.0,0.00013698,2]
[334730664,1723517440114,-502.93585482,0.00013698,2]
[334730665,1723517440123,-3330.38,0.00013698,2]
[334730666,1723517440133,-3131.99,0.00013698,2]
[334730667,1723517440142,-150.36652279,0.00013698,2]
[334730668,1723517440152,-505.80045931,0.00013698,2]
[334730669,1723517440161,-1123.4,0.00013698,2]
[334730670,1723517440170,-501.41158025,0.00013698,2]
[334730671,1723517440180,-504.38347771,0.00013698,2]
[334730672,1723517440190,-500.0,0.00013698,2]
[334730673,1723517440199,-503.19311323,0.00013698,2]
[334730674,1723517440208,-991.98,0.00013698,2]
[334730675,1723517440218,-507.20011329,0.00013698,2]
[334730676,1723517440228,-500.0,0.00013698,2]
[334730677,1723517440237,-505.71208401,0.00013698,2]
[334730678,1723517440247,-508.02086793,0.00013698,2]
[334730679,1723517440257,-1074.04,0.00013698,2]
[334730680,1723517440266,-863.9,0.00013698,2]
[334730681,1723517440275,-505.47463022,0.00013698,2]
[334730682,1723517440286,-505.36064693,0.00013698,2]
[334730683,1723517440297,-506.99395456,0.00013698,2]
[334730684,1723517440308,-456.58200291,0.00013698,2]
[334730685,1723517440319,-495.25153772,0.00013698,2]
[334730686,1723517440330,-640.42,0.00013698,2]
[334730687,1723517440339,-505.60728801,0.00013698,2]
[334730688,1723517440349,-506.3500057,0.00013698,2]
[334730689,1723517440358,-503.88429814,0.00013698,2]
[334730690,1723517440367,-3032.29,0.00013698,2]
[334730691,1723517440377,-157.74378377,0.00013698,2]